[Event "*** SCC Grand Prix: Titled Tuesday Blitz"]
[Site "Chess.com"]
[Date "2020.07.07"]
[Round "2"]
[White "GrafLermontov"]
[Black "VovenRogel"]
[Result "0-1"]
[WhiteElo "2482"]
[BlackElo "2700"]
[TimeControl "180+1"]
[EndTime "10:18:39 PDT"]
[Termination "VovenRogel won by resignation"]

1. d4 {[%clk 0:02:34.9]} 1... Nf6 {[%clk 0:02:49.6]} 2. c4 {[%clk 0:02:34.7]}
2... g6 {[%clk 0:02:45.2]} 3. Nc3 {[%clk 0:02:34.4]} 3... d5 {[%clk 0:02:43]} 4.
cxd5 {[%clk 0:02:34.3]} 4... Nxd5 {[%clk 0:02:39.1]} 5. e4 {[%clk 0:02:35.2]}
5... Nxc3 {[%clk 0:02:38]} 6. bxc3 {[%clk 0:02:36.1]} 6... Bg7 {[%clk
0:02:38.8]} 7. Nf3 {[%clk 0:02:35.9]} 7... c5 {[%clk 0:02:38.3]} 8. Be3 {[%clk
0:02:36]} 8... Qa5 {[%clk 0:02:37.6]} 9. Nd2 {[%clk 0:02:35.6]} 9... Nd7 {[%clk
0:02:30.4]} 10. Nb3 {[%clk 0:02:24.1]} 10... Qc7 {[%clk 0:02:22.5]} 11. Rc1
{[%clk 0:02:21.9]} 11... O-O {[%clk 0:02:17.1]} 12. Be2 {[%clk 0:02:21]} 12...
b6 {[%clk 0:02:04.8]} 13. O-O {[%clk 0:02:13.9]} 13... Bb7 {[%clk 0:01:59.4]}
14. d5 {[%clk 0:02:11.5]} 14... e6 {[%clk 0:01:57.7]} 15. c4 {[%clk 0:02:09.7]}
15... Rae8 {[%clk 0:01:53.9]} 16. Bf3 {[%clk 0:02:04.4]} 16... Qd6 {[%clk
0:01:47.2]} 17. g3 {[%clk 0:02:01.9]} 17... exd5 {[%clk 0:01:40.9]} 18. cxd5
{[%clk 0:01:57]} 18... Ne5 {[%clk 0:01:30.9]} 19. Bg2 {[%clk 0:01:55]} 19... c4
{[%clk 0:01:19.7]} 20. Nd4 {[%clk 0:01:43.5]} 20... a6 {[%clk 0:01:17.8]} 21.
Qc2 {[%clk 0:01:29.7]} 21... b5 {[%clk 0:01:16.7]} 22. a4 {[%clk 0:01:28.8]}
22... Ng4 {[%clk 0:01:07.1]} 23. Bf4 {[%clk 0:00:56.8]} 23... Qb6 {[%clk
0:01:02.8]} 24. Ne2 {[%clk 0:00:54.3]} 24... f5 {[%clk 0:00:44.6]} 25. axb5
{[%clk 0:00:50.2]} 25... axb5 {[%clk 0:00:43.9]} 26. h3 {[%clk 0:00:48]} 26...
Ne5 {[%clk 0:00:42.4]} 27. Be3 {[%clk 0:00:44.3]} 27... Qd8 {[%clk 0:00:41.2]}
28. Nd4 {[%clk 0:00:36.9]} 28... Nd3 {[%clk 0:00:36.8]} 29. Rb1 {[%clk
0:00:31.1]} 29... Qd7 {[%clk 0:00:36.5]} 30. exf5 {[%clk 0:00:24.8]} 30... Bxd4
{[%clk 0:00:29.5]} 31. Bxd4 {[%clk 0:00:23.5]} 31... Rxf5 {[%clk 0:00:28.9]} 32.
h4 {[%clk 0:00:14.4]} 32... Rxd5 {[%clk 0:00:28.1]} 33. Be3 {[%clk 0:00:12.4]}
33... Rde5 {[%clk 0:00:27.2]} 34. Bxb7 {[%clk 0:00:10.2]} 34... Qxb7 {[%clk
0:00:28.1]} 35. Rfd1 {[%clk 0:00:08.2]} 35... Qd5 {[%clk 0:00:20.6]} 36. Qe2
{[%clk 0:00:06.3]} 36... h5 {[%clk 0:00:18.2]} 37. Qf1 {[%clk 0:00:05.2]} 37...
Rxe3 {[%clk 0:00:17]} 38. fxe3 {[%clk 0:00:05.5]} 38... Rxe3 {[%clk 0:00:17.9]}
39. Qg2 {[%clk 0:00:05]} 39... Qe5 {[%clk 0:00:17]} 40. Rf1 {[%clk 0:00:04.5]}
40... Rxg3 {[%clk 0:00:16.5]} 0-1

[Event "*** SCC Grand Prix: Titled Tuesday Blitz"]
[Site "Chess.com"]
[Date "2020.07.07"]
[Round "2"]
[White "tigra"]
[Black "Stosk"]
[Result "1-0"]
[WhiteElo "2784"]
[BlackElo "2330"]
[TimeControl "180+1"]
[EndTime "10:18:39 PDT"]
[Termination "tigra won on time"]

1. d4 {[%clk 0:03:00.9]} 1... d5 {[%clk 0:02:59.1]} 2. c4 {[%clk 0:03:00]} 2...
e6 {[%clk 0:02:59.1]} 3. Nc3 {[%clk 0:02:52.2]} 3... a6 {[%clk 0:02:58.3]} 4.
Nf3 {[%clk 0:02:47.2]} 4... dxc4 {[%clk 0:02:47.2]} 5. a4 {[%clk 0:02:43.5]}
5... Nc6 {[%clk 0:02:41.5]} 6. e4 {[%clk 0:02:41.1]} 6... Na5 {[%clk 0:02:35.7]}
7. Bg5 {[%clk 0:02:39.6]} 7... Be7 {[%clk 0:02:31.3]} 8. Bxe7 {[%clk 0:02:33.3]}
8... Nxe7 {[%clk 0:02:26.1]} 9. Ne5 {[%clk 0:02:31.8]} 9... Nb3 {[%clk
0:02:21.3]} 10. Rb1 {[%clk 0:02:23.7]} 10... Nxd4 {[%clk 0:02:18.3]} 11. Bxc4
{[%clk 0:02:19.6]} 11... O-O {[%clk 0:02:12.6]} 12. O-O {[%clk 0:02:19.2]} 12...
Qd6 {[%clk 0:02:03.3]} 13. Ng4 {[%clk 0:02:12.6]} 13... e5 {[%clk 0:01:55.2]}
14. Ne3 {[%clk 0:02:11.3]} 14... Be6 {[%clk 0:01:48.8]} 15. Qh5 {[%clk
0:02:07.1]} 15... Ng6 {[%clk 0:01:43.9]} 16. Rfd1 {[%clk 0:02:05.7]} 16... Nf4
{[%clk 0:01:30.9]} 17. Qh4 {[%clk 0:02:05.9]} 17... Bxc4 {[%clk 0:01:18]} 18.
Nxc4 {[%clk 0:02:06.8]} 18... Qg6 {[%clk 0:01:15.5]} 19. Qxf4 {[%clk 0:02:02.6]}
19... exf4 {[%clk 0:01:09.3]} 20. Rxd4 {[%clk 0:02:02.8]} 20... Rad8 {[%clk
0:01:08.5]} 21. Nd5 {[%clk 0:02:02.4]} 21... Kh8 {[%clk 0:01:00]} 22. Rbd1
{[%clk 0:01:55.8]} 22... Qh5 {[%clk 0:00:40.3]} 23. b4 {[%clk 0:01:12.3]} 23...
c6 {[%clk 0:00:38.7]} 24. Nc3 {[%clk 0:01:12.4]} 24... Rxd4 {[%clk 0:00:36]} 25.
Rxd4 {[%clk 0:01:13.3]} 25... b5 {[%clk 0:00:28]} 26. axb5 {[%clk 0:01:11]}
26... cxb5 {[%clk 0:00:27.9]} 27. Nd6 {[%clk 0:01:09.9]} 27... h6 {[%clk
0:00:20.3]} 28. f3 {[%clk 0:01:08.5]} 28... Qg6 {[%clk 0:00:16.5]} 29. Rd3
{[%clk 0:01:01.3]} 29... Kh7 {[%clk 0:00:15.8]} 30. Nf5 {[%clk 0:01:00.9]} 30...
Qf6 {[%clk 0:00:14]} 31. h4 {[%clk 0:01:00.3]} 31... g6 {[%clk 0:00:13.7]} 32.
Nd4 {[%clk 0:00:49.5]} 32... Rd8 {[%clk 0:00:13]} 33. Nd5 {[%clk 0:00:48.6]}
33... Qe5 {[%clk 0:00:13]} 34. Ne2 {[%clk 0:00:47]} 34... g5 {[%clk 0:00:11.1]}
35. h5 {[%clk 0:00:45.1]} 35... Rc8 {[%clk 0:00:10.2]} 36. Kh2 {[%clk 0:00:45]}
36... Rc2 {[%clk 0:00:10]} 37. Nd4 {[%clk 0:00:45.2]} 37... Rb2 {[%clk
0:00:06.1]} 38. Nc6 {[%clk 0:00:43.5]} 38... Qe6 {[%clk 0:00:03.7]} 39. Nd8
{[%clk 0:00:42]} 39... Qe5 {[%clk 0:00:02.2]} 40. Nxf7 {[%clk 0:00:40.9]} 40...
Qg7 {[%clk 0:00:02.7]} 41. Nd6 {[%clk 0:00:38.1]} 41... g4 {[%clk 0:00:02.8]}
42. Nf5 {[%clk 0:00:37.7]} 42... Qg5 {[%clk 0:00:02.2]} 43. fxg4 {[%clk
0:00:33.3]} 43... Qxg4 {[%clk 0:00:03.1]} 44. Nf6+ {[%clk 0:00:32.9]} 44... Kh8
{[%clk 0:00:03.3]} 45. Rd8+ {[%clk 0:00:33]} 1-0

[Event "*** SCC Grand Prix: Titled Tuesday Blitz"]
[Site "Chess.com"]
[Date "2020.07.07"]
[Round "2"]
[White "Yoshikrov"]
[Black "Onegust"]
[Result "1-0"]
[WhiteElo "2084"]
[BlackElo "2603"]
[TimeControl "180+1"]
[EndTime "10:18:40 PDT"]
[Termination "Yoshikrov won by resignation"]

1. e4 {[%clk 0:03:00.9]} 1... c5 {[%clk 0:02:59.6]} 2. Nf3 {[%clk 0:03:00.6]}
2... d6 {[%clk 0:03:00.1]} 3. d4 {[%clk 0:03:00.3]} 3... cxd4 {[%clk 0:03:01]}
4. Nxd4 {[%clk 0:03:00.1]} 4... Nf6 {[%clk 0:03:01.6]} 5. Nc3 {[%clk 0:02:59.6]}
5... a6 {[%clk 0:03:02.1]} 6. Be3 {[%clk 0:02:58.1]} 6... e5 {[%clk 0:03:01.3]}
7. Nb3 {[%clk 0:02:57.7]} 7... Be7 {[%clk 0:02:59.5]} 8. f3 {[%clk 0:02:57.6]}
8... Be6 {[%clk 0:02:58.9]} 9. Qd2 {[%clk 0:02:57.6]} 9... h5 {[%clk 0:02:59.4]}
10. O-O-O {[%clk 0:02:56.5]} 10... Nbd7 {[%clk 0:02:59.2]} 11. Nd5 {[%clk
0:02:51.4]} 11... Bxd5 {[%clk 0:02:59.3]} 12. exd5 {[%clk 0:02:51.5]} 12... Rc8
{[%clk 0:03:00.2]} 13. Kb1 {[%clk 0:02:51.5]} 13... Nb6 {[%clk 0:02:47.3]} 14.
Bxb6 {[%clk 0:02:50.6]} 14... Qxb6 {[%clk 0:02:48.2]} 15. Be2 {[%clk 0:02:26.2]}
15... O-O {[%clk 0:02:37.3]} 16. g4 {[%clk 0:02:24.2]} 16... hxg4 {[%clk
0:02:36.9]} 17. fxg4 {[%clk 0:02:24.4]} 17... Ne4 {[%clk 0:02:37.2]} 18. Qe1
{[%clk 0:01:57]} 18... Nf2 {[%clk 0:02:37.1]} 19. Rg1 {[%clk 0:01:47.7]} 19...
Nxd1 {[%clk 0:02:34]} 20. Qxd1 {[%clk 0:01:48]} 20... a5 {[%clk 0:02:14.4]} 21.
a3 {[%clk 0:01:28.1]} 21... e4 {[%clk 0:02:03.2]} 22. g5 {[%clk 0:01:21.6]}
22... Qe3 {[%clk 0:01:58.6]} 23. h4 {[%clk 0:01:15.9]} 23... f5 {[%clk
0:01:52.9]} 24. Nd4 {[%clk 0:01:13]} 24... f4 {[%clk 0:01:50]} 25. Ne6 {[%clk
0:01:11.9]} 25... f3 {[%clk 0:01:48.8]} 26. Bb5 {[%clk 0:00:58.3]} 26... Rf5
{[%clk 0:01:32.8]} 27. Re1 {[%clk 0:00:50.3]} 27... Qb6 {[%clk 0:01:16]} 28. Bd7
{[%clk 0:00:49.2]} 28... f2 {[%clk 0:01:11.8]} 29. Bxc8 {[%clk 0:00:43.4]} 29...
fxe1=Q {[%clk 0:01:10.6]} 30. Qxe1 {[%clk 0:00:43.6]} 30... Re5 {[%clk
0:01:02.1]} 31. Nf4 {[%clk 0:00:39.7]} 31... Kf7 {[%clk 0:00:25.5]} 32. Be6+
{[%clk 0:00:37.3]} 32... Ke8 {[%clk 0:00:25.9]} 33. Ng6 {[%clk 0:00:37.5]} 33...
Qd4 {[%clk 0:00:15.8]} 34. Nxe5 {[%clk 0:00:36.5]} 34... Qxe5 {[%clk 0:00:16.7]}
35. Qxa5 {[%clk 0:00:28.1]} 35... e3 {[%clk 0:00:11.6]} 36. Qa8+ {[%clk
0:00:27.3]} 36... Bd8 {[%clk 0:00:11.6]} 37. Qxb7 {[%clk 0:00:27.7]} 1-0

[Event "*** SCC Grand Prix: Titled Tuesday Blitz"]
[Site "Chess.com"]
[Date "2020.07.07"]
[Round "2"]
[White "winniethepooh04"]
[Black "yamalchess"]
[Result "0-1"]
[WhiteElo "2210"]
[BlackElo "2448"]
[TimeControl "180+1"]
[EndTime "10:18:40 PDT"]
[Termination "yamalchess won by checkmate"]

1. d4 {[%clk 0:03:00.9]} 1... f5 {[%clk 0:02:59.1]} 2. Bg5 {[%clk 0:03:00.3]}
2... Nc6 {[%clk 0:02:58.2]} 3. Nf3 {[%clk 0:03:00]} 3... g6 {[%clk 0:02:55.1]}
4. e3 {[%clk 0:02:59.7]} 4... Nh6 {[%clk 0:02:53.8]} 5. Be2 {[%clk 0:02:52.1]}
5... Nf7 {[%clk 0:02:52.5]} 6. Bf4 {[%clk 0:02:52]} 6... Bg7 {[%clk 0:02:52.4]}
7. O-O {[%clk 0:02:49.5]} 7... d6 {[%clk 0:02:52.7]} 8. h3 {[%clk 0:02:48.1]}
8... e5 {[%clk 0:02:49.7]} 9. Bh2 {[%clk 0:02:47.7]} 9... O-O {[%clk 0:02:48.5]}
10. c4 {[%clk 0:02:47.3]} 10... e4 {[%clk 0:02:32.4]} 11. Nfd2 {[%clk
0:02:46.3]} 11... Re8 {[%clk 0:02:27.5]} 12. Nc3 {[%clk 0:02:46.3]} 12... g5
{[%clk 0:02:18]} 13. Rc1 {[%clk 0:02:39]} 13... Bd7 {[%clk 0:02:14.1]} 14. a3
{[%clk 0:02:38.1]} 14... a5 {[%clk 0:02:13.2]} 15. Qc2 {[%clk 0:02:35.5]} 15...
Nh8 {[%clk 0:02:02.5]} 16. Rce1 {[%clk 0:02:32.4]} 16... Ng6 {[%clk 0:02:01.8]}
17. f3 {[%clk 0:02:28.5]} 17... exf3 {[%clk 0:01:50.8]} 18. Bxf3 {[%clk
0:02:27.9]} 18... Rxe3 {[%clk 0:01:44.9]} 19. Bxc6 {[%clk 0:02:15]} 19... bxc6
{[%clk 0:01:37.2]} 20. Rxe3 {[%clk 0:02:10.8]} 20... Bxd4 {[%clk 0:01:36.2]} 21.
Qd3 {[%clk 0:02:10.7]} 21... Qf6 {[%clk 0:01:22.5]} 22. Kh1 {[%clk 0:02:00.4]}
22... Bxe3 {[%clk 0:01:20.5]} 23. Qxe3 {[%clk 0:02:01.3]} 23... Re8 {[%clk
0:01:05.8]} 24. Qd3 {[%clk 0:01:47.5]} 24... h5 {[%clk 0:00:49.9]} 25. Qc2
{[%clk 0:01:30]} 25... g4 {[%clk 0:00:49.1]} 26. hxg4 {[%clk 0:01:26.5]} 26...
hxg4 {[%clk 0:00:48.2]} 27. Qd3 {[%clk 0:01:03.4]} 27... Qg5 {[%clk 0:00:42.9]}
28. Nde4 {[%clk 0:00:51.4]} 28... Qh4 {[%clk 0:00:35.8]} 29. Ng3 {[%clk
0:00:48.4]} 29... Ne5 {[%clk 0:00:32.6]} 30. Qc2 {[%clk 0:00:38.8]} 30... Rf8
{[%clk 0:00:28.9]} 31. Nce2 {[%clk 0:00:34.1]} 31... Qg5 {[%clk 0:00:21.8]} 32.
Nf4 {[%clk 0:00:33.8]} 32... Rf7 {[%clk 0:00:19.4]} 33. Nfe2 {[%clk 0:00:27.3]}
33... Rh7 {[%clk 0:00:18.9]} 34. Nxf5 {[%clk 0:00:27.3]} 34... Nf3 {[%clk
0:00:15.3]} 35. gxf3 {[%clk 0:00:22.4]} 35... Bxf5 {[%clk 0:00:14.8]} 36. f4
{[%clk 0:00:22.2]} 36... Rxh2+ {[%clk 0:00:12.2]} 37. Kxh2 {[%clk 0:00:21.1]}
37... Qh4+ {[%clk 0:00:12.2]} 38. Kg2 {[%clk 0:00:21.1]} 38... Qh3+ {[%clk
0:00:12]} 39. Kf2 {[%clk 0:00:21]} 39... Bxc2 {[%clk 0:00:12]} 40. Nd4 {[%clk
0:00:20.7]} 40... g3+ {[%clk 0:00:11.5]} 41. Kf3 {[%clk 0:00:18.5]} 41... g2+
{[%clk 0:00:11]} 42. Kf2 {[%clk 0:00:18.1]} 42... gxf1=Q# {[%clk 0:00:10.8]} 0-1

[Event "*** SCC Grand Prix: Titled Tuesday Blitz"]
[Site "Chess.com"]
[Date "2020.07.07"]
[Round "2"]
[White "eljanov"]
[Black "Roman_Ovetchkin"]
[Result "0-1"]
[WhiteElo "2872"]
[BlackElo "2582"]
[TimeControl "180+1"]
[EndTime "10:18:42 PDT"]
[Termination "Roman_Ovetchkin won on time"]

1. e4 {[%clk 0:03:00.9]} 1... c6 {[%clk 0:02:59.7]} 2. d4 {[%clk 0:03:00.6]}
2... d5 {[%clk 0:03:00.6]} 3. exd5 {[%clk 0:03:00.8]} 3... cxd5 {[%clk
0:03:00.4]} 4. Bd3 {[%clk 0:03:01]} 4... Nc6 {[%clk 0:02:59.8]} 5. c3 {[%clk
0:03:00.8]} 5... Nf6 {[%clk 0:02:56.7]} 6. Bf4 {[%clk 0:02:59.3]} 6... Bg4
{[%clk 0:02:55.5]} 7. Qb3 {[%clk 0:02:58.6]} 7... Qd7 {[%clk 0:02:50.4]} 8. Nd2
{[%clk 0:02:58.7]} 8... e6 {[%clk 0:02:50.6]} 9. Ngf3 {[%clk 0:02:59]} 9... Bd6
{[%clk 0:02:50.8]} 10. Bxd6 {[%clk 0:02:59.2]} 10... Qxd6 {[%clk 0:02:50.7]} 11.
O-O {[%clk 0:02:59.8]} 11... O-O {[%clk 0:02:48.9]} 12. Rfe1 {[%clk 0:02:59.8]}
12... Bxf3 {[%clk 0:02:34.9]} 13. Nxf3 {[%clk 0:02:59.5]} 13... Qc7 {[%clk
0:02:35.5]} 14. Qc2 {[%clk 0:02:57.5]} 14... Rfc8 {[%clk 0:02:28.4]} 15. a3
{[%clk 0:02:54]} 15... Rab8 {[%clk 0:02:26.6]} 16. Ne5 {[%clk 0:02:46.5]} 16...
Nxd4 {[%clk 0:02:18.9]} 17. Qd1 {[%clk 0:01:25.8]} 17... Nc6 {[%clk 0:02:16.9]}
18. Ng4 {[%clk 0:01:25.8]} 18... Nxg4 {[%clk 0:01:52.4]} 19. Qxg4 {[%clk
0:01:25.6]} 19... g6 {[%clk 0:01:52.9]} 20. Qh4 {[%clk 0:01:18.2]} 20... Re8
{[%clk 0:01:49.9]} 21. Rad1 {[%clk 0:01:13.1]} 21... Rbd8 {[%clk 0:01:42.5]} 22.
h3 {[%clk 0:01:03.8]} 22... Kg7 {[%clk 0:01:26.2]} 23. Bb1 {[%clk 0:00:54.4]}
23... Qe7 {[%clk 0:01:20]} 24. Qa4 {[%clk 0:00:50.8]} 24... Qc5 {[%clk
0:01:09.8]} 25. Qf4 {[%clk 0:00:45.3]} 25... e5 {[%clk 0:01:07.4]} 26. Qf3
{[%clk 0:00:36.5]} 26... e4 {[%clk 0:01:00]} 27. Qf4 {[%clk 0:00:34.5]} 27... f5
{[%clk 0:00:49.3]} 28. Rc1 {[%clk 0:00:21.3]} 28... Qd6 {[%clk 0:00:46.1]} 29.
Qh4 {[%clk 0:00:19.4]} 29... Qf6 {[%clk 0:00:44.7]} 30. Qf4 {[%clk 0:00:18.8]}
30... Qe5 {[%clk 0:00:43.3]} 31. Qh4 {[%clk 0:00:15.1]} 31... Rd7 {[%clk
0:00:39.5]} 32. Ba2 {[%clk 0:00:14.7]} 32... Red8 {[%clk 0:00:38.7]} 33. Kh1
{[%clk 0:00:12]} 33... f4 {[%clk 0:00:32.9]} 34. Qg4 {[%clk 0:00:10.3]} 34...
Qf5 {[%clk 0:00:30.5]} 35. Qh4 {[%clk 0:00:07.4]} 35... Ne5 {[%clk 0:00:27.9]}
36. Rcd1 {[%clk 0:00:06.3]} 36... Nd3 {[%clk 0:00:25.9]} 37. Re2 {[%clk
0:00:06.7]} 37... f3 {[%clk 0:00:22.7]} 38. Red2 {[%clk 0:00:04.1]} 38... fxg2+
{[%clk 0:00:21.8]} 39. Kxg2 {[%clk 0:00:04.5]} 39... Qf3+ {[%clk 0:00:20.4]} 40.
Kh2 {[%clk 0:00:04.9]} 40... Rf8 {[%clk 0:00:20.7]} 41. Rf1 {[%clk 0:00:02]}
41... Rf5 {[%clk 0:00:20]} 42. Bb1 {[%clk 0:00:01.2]} 42... Nf4 {[%clk
0:00:19.8]} 0-1

[Event "*** SCC Grand Prix: Titled Tuesday Blitz"]
[Site "Chess.com"]
[Date "2020.07.07"]
[Round "2"]
[White "GoingKronos"]
[Black "Leonid_Starozhilov"]
[Result "1-0"]
[WhiteElo "2508"]
[BlackElo "2653"]
[TimeControl "180+1"]
[EndTime "10:18:42 PDT"]
[Termination "GoingKronos won by resignation"]

1. d4 {[%clk 0:03:00.9]} 1... Nf6 {[%clk 0:03:00.3]} 2. Nf3 {[%clk 0:03:00.2]}
2... g6 {[%clk 0:03:00.7]} 3. g3 {[%clk 0:03:00.1]} 3... Bg7 {[%clk 0:03:01.1]}
4. Bg2 {[%clk 0:03:00]} 4... O-O {[%clk 0:03:02]} 5. O-O {[%clk 0:03:00]} 5...
d6 {[%clk 0:03:02.9]} 6. c4 {[%clk 0:02:59.2]} 6... c6 {[%clk 0:03:03.2]} 7. Nc3
{[%clk 0:02:58.4]} 7... Bf5 {[%clk 0:03:03.7]} 8. Ne1 {[%clk 0:02:53.5]} 8... e5
{[%clk 0:03:02.3]} 9. d5 {[%clk 0:02:32.9]} 9... cxd5 {[%clk 0:03:02.4]} 10.
cxd5 {[%clk 0:02:32.2]} 10... Na6 {[%clk 0:03:00]} 11. e4 {[%clk 0:02:30.3]}
11... Bd7 {[%clk 0:02:59.7]} 12. Nd3 {[%clk 0:02:24.9]} 12... Rc8 {[%clk
0:02:44.9]} 13. f3 {[%clk 0:02:19.2]} 13... Qb6+ {[%clk 0:02:36.3]} 14. Kh1
{[%clk 0:02:15.6]} 14... Nb4 {[%clk 0:02:32.4]} 15. Nxb4 {[%clk 0:01:57.5]}
15... Qxb4 {[%clk 0:02:32.2]} 16. Rf2 {[%clk 0:01:49.1]} 16... Rc4 {[%clk
0:02:10.4]} 17. Be3 {[%clk 0:01:43]} 17... Rfc8 {[%clk 0:02:04.4]} 18. Bf1
{[%clk 0:01:16.2]} 18... Rxc3 {[%clk 0:01:17.5]} 19. bxc3 {[%clk 0:01:15.9]}
19... Qxc3 {[%clk 0:01:17.6]} 20. Bd3 {[%clk 0:01:02.6]} 20... Ba4 {[%clk
0:01:07.7]} 21. Qf1 {[%clk 0:00:55.9]} 21... Qa5 {[%clk 0:00:57.4]} 22. Rc1
{[%clk 0:00:54]} 22... Rf8 {[%clk 0:00:52]} 23. Rb2 {[%clk 0:00:48.9]} 23... b5
{[%clk 0:00:29.9]} 24. Bxb5 {[%clk 0:00:40.3]} 24... Bxb5 {[%clk 0:00:30.1]} 25.
Qxb5 {[%clk 0:00:38.7]} 25... Qa3 {[%clk 0:00:30.7]} 26. Qb3 {[%clk 0:00:37.9]}
26... Qa6 {[%clk 0:00:26.5]} 27. Qc4 {[%clk 0:00:29.4]} 27... Qa3 {[%clk
0:00:22.4]} 28. Qc3 {[%clk 0:00:29.6]} 28... Qa4 {[%clk 0:00:20.5]} 29. Kg2
{[%clk 0:00:24.7]} 29... h5 {[%clk 0:00:19.8]} 30. h4 {[%clk 0:00:23.2]} 30...
Nh7 {[%clk 0:00:19]} 31. Qb3 {[%clk 0:00:23.6]} 31... Qa6 {[%clk 0:00:16.5]} 32.
Rc6 {[%clk 0:00:22.4]} 32... Qa5 {[%clk 0:00:15.1]} 33. Qb4 {[%clk 0:00:21]}
33... Qd8 {[%clk 0:00:12.4]} 34. Qxd6 {[%clk 0:00:21]} 34... Qe8 {[%clk
0:00:11.2]} 35. Rb7 {[%clk 0:00:18.9]} 35... Bf6 {[%clk 0:00:07.8]} 36. Bh6
{[%clk 0:00:17.6]} 36... Bg7 {[%clk 0:00:07.4]} 37. Bxg7 {[%clk 0:00:17.8]}
37... Kxg7 {[%clk 0:00:08.3]} 38. Qxg6+ {[%clk 0:00:17.9]} 38... Kh8 {[%clk
0:00:08.8]} 39. Qh6 {[%clk 0:00:16.3]} 39... Rg8 {[%clk 0:00:07.7]} 40. Qxh5
{[%clk 0:00:16]} 40... Qf8 {[%clk 0:00:05.8]} 41. Rxf7 {[%clk 0:00:14.4]} 1-0

[Event "*** SCC Grand Prix: Titled Tuesday Blitz"]
[Site "Chess.com"]
[Date "2020.07.07"]
[Round "2"]
[White "Mbneu"]
[Black "novendrapriasmoro"]
[Result "0-1"]
[WhiteElo "2258"]
[BlackElo "2635"]
[TimeControl "180+1"]
[EndTime "10:18:43 PDT"]
[Termination "novendrapriasmoro won on time"]

1. d4 {[%clk 0:03:00.9]} 1... Nf6 {[%clk 0:02:59.8]} 2. c4 {[%clk 0:03:00.9]}
2... g6 {[%clk 0:03:00.2]} 3. Nc3 {[%clk 0:03:01.1]} 3... Bg7 {[%clk 0:03:00.5]}
4. e4 {[%clk 0:02:59.9]} 4... d6 {[%clk 0:03:00.9]} 5. f4 {[%clk 0:03:00.4]}
5... O-O {[%clk 0:03:01]} 6. Nf3 {[%clk 0:03:00.9]} 6... c5 {[%clk 0:03:00.8]}
7. d5 {[%clk 0:03:01.5]} 7... e6 {[%clk 0:03:00.8]} 8. Be2 {[%clk 0:03:01.3]}
8... exd5 {[%clk 0:03:01.1]} 9. cxd5 {[%clk 0:03:01.4]} 9... Re8 {[%clk
0:03:01.2]} 10. e5 {[%clk 0:03:01.4]} 10... dxe5 {[%clk 0:02:52.1]} 11. fxe5
{[%clk 0:03:01.9]} 11... Ng4 {[%clk 0:02:52.5]} 12. e6 {[%clk 0:03:02.4]} 12...
fxe6 {[%clk 0:02:52.8]} 13. Bg5 {[%clk 0:03:02.6]} 13... Qb6 {[%clk 0:02:50.8]}
14. Qd2 {[%clk 0:03:01.9]} 14... h6 {[%clk 0:02:41.9]} 15. h3 {[%clk 0:02:30.5]}
15... Nf2 {[%clk 0:02:34]} 16. Kxf2 {[%clk 0:02:28.5]} 16... hxg5 {[%clk
0:02:34]} 17. Rhe1 {[%clk 0:02:15]} 17... g4 {[%clk 0:02:07.2]} 18. hxg4 {[%clk
0:02:12.6]} 18... c4+ {[%clk 0:02:01.7]} 19. Kf1 {[%clk 0:02:11.4]} 19... exd5
{[%clk 0:02:00.9]} 20. Nxd5 {[%clk 0:02:05.5]} 20... Qc6 {[%clk 0:01:59.9]} 21.
Rac1 {[%clk 0:02:01.7]} 21... b5 {[%clk 0:01:58.2]} 22. b3 {[%clk 0:01:59.3]}
22... Bxg4 {[%clk 0:01:48.2]} 23. bxc4 {[%clk 0:01:57.4]} 23... b4 {[%clk
0:01:48.5]} 24. c5 {[%clk 0:01:50.5]} 24... Nd7 {[%clk 0:01:40.8]} 25. Bc4
{[%clk 0:01:49.1]} 25... Kh8 {[%clk 0:01:38.8]} 26. Qg5 {[%clk 0:01:33.5]} 26...
Bh5 {[%clk 0:01:22.1]} 27. Ne7 {[%clk 0:01:21.1]} 27... Qf6 {[%clk 0:01:18.7]}
28. c6 {[%clk 0:00:53.4]} 28... Qxg5 {[%clk 0:00:45]} 29. Nxg5 {[%clk
0:00:51.9]} 29... Ne5 {[%clk 0:00:44.8]} 30. Nd5 {[%clk 0:00:24.6]} 30... Nxc6
{[%clk 0:00:35.4]} 31. Kg1 {[%clk 0:00:20.3]} 31... Bd4+ {[%clk 0:00:20.7]} 32.
Kh1 {[%clk 0:00:19.8]} 32... Rac8 {[%clk 0:00:19.2]} 33. Bb3 {[%clk 0:00:16.7]}
33... Rxe1+ {[%clk 0:00:17.2]} 34. Rxe1 {[%clk 0:00:15.8]} 34... Bg4 {[%clk
0:00:10.4]} 35. Nf7+ {[%clk 0:00:14.9]} 35... Kg7 {[%clk 0:00:10.4]} 36. Nd6
{[%clk 0:00:13.9]} 36... Rd8 {[%clk 0:00:10.8]} 37. Nb7 {[%clk 0:00:09.9]} 37...
Rd7 {[%clk 0:00:10.8]} 38. Re4 {[%clk 0:00:01.7]} 38... Bf5 {[%clk 0:00:08.7]}
0-1